[Event "Titled Tuesday Blitz August 15 Early 2023"]
[White "Bluebaum, Matthias"]
[Black "Nguyen Hong Nhung"]
[WhiteFideId "24651516"]
[BlackFideId "12412201"]
[WhiteElo "3006"]
[BlackElo "2488"]
[Result "1-0"]
[Round "1"]
[TimeControl "180+1"]
[Date "2023.08.15"]
[WhiteClock "0:00:22"]
[BlackClock "0:00:14"]
[Board "22"]

1. d4 {[%clk 0:03:00]}  f5 {[%clk 0:02:57]} 2. c4 {[%clk 0:02:58]}  Nf6 {[%clk 0:02:57]} 3. Nf3 {[%clk 0:02:58]}  g6 {[%clk 0:02:57]} 4. e3 {[%clk 0:02:58]}  Bg7 {[%clk 0:02:57]} 5. b4 {[%clk 0:02:59]}  O-O {[%clk 0:02:55]} 6. Be2 {[%clk 0:03:00]}  d6 {[%clk 0:02:54]} 7. Bb2 {[%clk 0:03:00]}  Ne4 {[%clk 0:02:54]} 8. O-O {[%clk 0:03:00]}  Qe8 {[%clk 0:02:50]} 9. Nc3 {[%clk 0:02:59]}  c6 {[%clk 0:02:48]} 10. Nxe4 {[%clk 0:02:56]}  fxe4 {[%clk 0:02:49]} 11. Nd2 {[%clk 0:02:57]}  d5 {[%clk 0:02:46]} 12. cxd5 {[%clk 0:02:52]}  cxd5 {[%clk 0:02:47]} 13. Qb3 {[%clk 0:02:53]}  e6 {[%clk 0:02:41]} 14. Rac1 {[%clk 0:02:51]}  Bd7 {[%clk 0:02:38]} 15. b5 {[%clk 0:02:50]}  Qd8 {[%clk 0:02:29]} 16. a4 {[%clk 0:02:48]}  Be8 {[%clk 0:02:26]} 17. f3 {[%clk 0:02:46]}  exf3 {[%clk 0:02:25]} 18. Nxf3 {[%clk 0:02:47]}  Nd7 {[%clk 0:02:24]} 19. Ba3 {[%clk 0:02:38]}  Rf7 {[%clk 0:02:21]} 20. Bd3 {[%clk 0:02:29]}  Rc8 {[%clk 0:02:14]} 21. Rxc8 {[%clk 0:02:24]}  Qxc8 {[%clk 0:02:15]} 22. e4 {[%clk 0:02:24]}  Nf6 {[%clk 0:01:58]} 23. Ng5 {[%clk 0:01:58]}  Rc7 {[%clk 0:01:56]} 24. e5 {[%clk 0:01:55]}  Ng4 {[%clk 0:01:48]} 25. Qb4 {[%clk 0:01:49]}  Bf7 {[%clk 0:01:29]} 26. h3 {[%clk 0:01:09]}  Ne3 {[%clk 0:01:20]} 27. Rxf7 {[%clk 0:01:08]}  Rxf7 {[%clk 0:01:20]} 28. Nxf7 {[%clk 0:01:08]}  Kxf7 {[%clk 0:01:21]} 29. Qe7+ {[%clk 0:01:09]}  Kg8 {[%clk 0:01:22]} 30. Bd6 {[%clk 0:00:47]}  Bh6 {[%clk 0:01:10]} 31. Kh2 {[%clk 0:00:31]}  Bf4+ {[%clk 0:01:00]} 32. g3 {[%clk 0:00:31]}  Bh6 {[%clk 0:01:00]} 33. Qc7 {[%clk 0:00:25]}  Qxc7 {[%clk 0:00:49]} 34. Bxc7 {[%clk 0:00:26]}  Nd1 {[%clk 0:00:50]} 35. Bb8 {[%clk 0:00:18]}  a6 {[%clk 0:00:46]} 36. bxa6 {[%clk 0:00:18]}  bxa6 {[%clk 0:00:47]} 37. Bxa6 {[%clk 0:00:18]}  Be3 {[%clk 0:00:46]} 38. Ba7 {[%clk 0:00:18]}  Nc3 {[%clk 0:00:38]} 39. a5 {[%clk 0:00:19]}  Kf7 {[%clk 0:00:34]} 40. Bd3 {[%clk 0:00:18]}  Ke7 {[%clk 0:00:33]} 41. Bc5+ {[%clk 0:00:18]}  Kd7 {[%clk 0:00:33]} 42. a6 {[%clk 0:00:19]}  Kc6 {[%clk 0:00:30]} 43. a7 {[%clk 0:00:15]}  Kb7 {[%clk 0:00:30]} 44. Ba6+ {[%clk 0:00:16]}  Ka8 {[%clk 0:00:30]} 45. Bc8 {[%clk 0:00:17]}  Na4 {[%clk 0:00:28]} 46. Bd6 {[%clk 0:00:06]}  Kxa7 {[%clk 0:00:24]} 47. Bxe6 {[%clk 0:00:07]}  Bxd4 {[%clk 0:00:20]} 48. Bxd5 {[%clk 0:00:07]}  Nc3 {[%clk 0:00:19]} 49. Bg8 {[%clk 0:00:07]}  Kb6 {[%clk 0:00:19]} 50. e6 {[%clk 0:00:07]}  Nd5 {[%clk 0:00:18]} 51. e7 {[%clk 0:00:07]}  Nxe7 {[%clk 0:00:15]} 52. Bxe7 {[%clk 0:00:08]}  h6 {[%clk 0:00:15]} 53. Bf7 {[%clk 0:00:08]}  g5 {[%clk 0:00:14]} 54. Kg2 {[%clk 0:00:09]}  Bg7 {[%clk 0:00:14]} 55. Kf3 {[%clk 0:00:09]}  Kc6 {[%clk 0:00:15]} 56. Kg4 {[%clk 0:00:09]}  Kd7 {[%clk 0:00:15]} 57. Bb4 {[%clk 0:00:10]}  Kd8 {[%clk 0:00:14]} 58. Kf5 {[%clk 0:00:10]}  Kd7 {[%clk 0:00:12]} 59. g4 {[%clk 0:00:11]}  Kc6 {[%clk 0:00:12]} 60. Kg6 {[%clk 0:00:11]}  Be5 {[%clk 0:00:12]} 61. Bf8 {[%clk 0:00:12]}  Bf4 {[%clk 0:00:11]} 62. Bxh6 {[%clk 0:00:13]}  Kd6 {[%clk 0:00:12]} 63. Bxg5 {[%clk 0:00:14]}  Bg3 {[%clk 0:00:12]} 64. Bf6 {[%clk 0:00:14]}  Kd7 {[%clk 0:00:12]} 65. h4 {[%clk 0:00:14]}  Bf4 {[%clk 0:00:13]} 66. h5 {[%clk 0:00:15]}  Bd6 {[%clk 0:00:13]} 67. g5 {[%clk 0:00:16]}  Bc5 {[%clk 0:00:13]} 68. h6 {[%clk 0:00:17]}  Bf8 {[%clk 0:00:13]} 69. h7 {[%clk 0:00:17]}  Bd6 {[%clk 0:00:14]} 70. h8=N {[%clk 0:00:16]}  Kc6 {[%clk 0:00:14]} 71. Kf5 {[%clk 0:00:17]}  Bc5 {[%clk 0:00:14]} 72. Ke6 {[%clk 0:00:18]}  Kb5 {[%clk 0:00:14]} 73. g6 {[%clk 0:00:19]}  Be3 {[%clk 0:00:13]} 74. g7 {[%clk 0:00:20]}  Kc4 {[%clk 0:00:13]} 75. Ng6 {[%clk 0:00:21]}  Kd3 {[%clk 0:00:14]} 76. g8=Q {[%clk 0:00:21]}  Ke2 {[%clk 0:00:14]} 77. Qe8 {[%clk 0:00:22]}  Kf3 {[%clk 0:00:14]} 78. Qc6+ {[%clk 0:00:23]}  Kg4 {[%clk 0:00:14]} 79. Ne5+ {[%clk 0:00:24]}  Kh3 {[%clk 0:00:13]} 80. Qf3+ {[%clk 0:00:24]}  Kh2 {[%clk 0:00:14]} 81. Ng4+ {[%clk 0:00:24]}  Kg1 {[%clk 0:00:14]} 82. Qxe3+ {[%clk 0:00:25]}  Kf1 {[%clk 0:00:14]} 83. Qf2# {[%clk 0:00:22]} 1-0


[Site "https://www.chess.com"]

[Event "Titled Tuesday Blitz August 15 Early 2023"]
[White "Koutlas, Nikolaos"]
[Black "Tabatabaei, M. Amin"]
[WhiteFideId "25827138"]
[BlackFideId "12521213"]
[WhiteElo "2486"]
[BlackElo "3000"]
[Result "0-1"]
[Round "1"]
[TimeControl "180+1"]
[Date "2023.08.15"]
[WhiteClock "0:00:00"]
[BlackClock "0:00:57"]
[Board "25"]

1. Nf3 {[%clk 0:03:00]}  d5 {[%clk 0:02:56]} 2. g3 {[%clk 0:02:59]}  c6 {[%clk 0:02:56]} 3. Bg2 {[%clk 0:03:00]}  Bg4 {[%clk 0:02:56]} 4. O-O {[%clk 0:03:00]}  Nd7 {[%clk 0:02:49]} 5. d4 {[%clk 0:02:59]}  Ngf6 {[%clk 0:02:49]} 6. Nbd2 {[%clk 0:02:48]}  e6 {[%clk 0:02:47]} 7. c4 {[%clk 0:02:48]}  h6 {[%clk 0:02:37]} 8. Qc2 {[%clk 0:02:47]}  Bf5 {[%clk 0:02:37]} 9. Qb3 {[%clk 0:02:45]}  Qb6 {[%clk 0:02:36]} 10. c5 {[%clk 0:02:44]}  Qxb3 {[%clk 0:02:36]} 11. axb3 {[%clk 0:02:44]}  Be7 {[%clk 0:02:34]} 12. b4 {[%clk 0:02:42]}  O-O {[%clk 0:02:33]} 13. Nb3 {[%clk 0:02:39]}  g5 {[%clk 0:02:31]} 14. h4 {[%clk 0:02:37]}  Ne4 {[%clk 0:02:28]} 15. hxg5 {[%clk 0:02:28]}  hxg5 {[%clk 0:02:29]} 16. Nfd2 {[%clk 0:02:04]}  Kg7 {[%clk 0:02:12]} 17. Na5 {[%clk 0:01:26]}  Nxd2 {[%clk 0:02:04]} 18. Bxd2 {[%clk 0:01:26]}  Rab8 {[%clk 0:02:04]} 19. Rfc1 {[%clk 0:01:08]}  a6 {[%clk 0:02:04]} 20. f3 {[%clk 0:01:01]}  Bg6 {[%clk 0:02:01]} 21. Kf2 {[%clk 0:00:48]}  e5 {[%clk 0:01:47]} 22. e3 {[%clk 0:00:26]}  f5 {[%clk 0:01:43]} 23. Bc3 {[%clk 0:00:14]}  Bf6 {[%clk 0:01:43]} 24. Nb3 {[%clk 0:00:12]}  Rbe8 {[%clk 0:01:38]} 25. Re1 {[%clk 0:00:11]}  Re7 {[%clk 0:01:36]} 26. Re2 {[%clk 0:00:11]}  Rfe8 {[%clk 0:01:18]} 27. Rae1 {[%clk 0:00:10]}  Bh5 {[%clk 0:01:13]} 28. Bh3 {[%clk 0:00:07]}  g4 {[%clk 0:01:05]} 29. fxg4 {[%clk 0:00:07]}  fxg4 {[%clk 0:01:03]} 30. Bg2 {[%clk 0:00:07]}  e4 {[%clk 0:01:04]} 31. Kg1 {[%clk 0:00:05]}  Nf8 {[%clk 0:01:01]} 32. Rf1 {[%clk 0:00:05]}  Ne6 {[%clk 0:01:01]} 33. Rf5 {[%clk 0:00:02]}  Bg6 {[%clk 0:01:01]} 34. Rf4 {[%clk 0:00:02]}  Nxf4 {[%clk 0:01:00]} 35. gxf4 {[%clk 0:00:02]}  g3 {[%clk 0:00:55]} 36. Be1 {[%clk 0:00:01]}  Bh5 {[%clk 0:00:56]} 37. Rc2 {[%clk 0:00:00]}  Bh4 {[%clk 0:00:57]} 0-1


[Site "https://www.chess.com"]

[Event "Titled Tuesday Blitz August 15 Early 2023"]
[White "Le, Tuan Minh"]
[Black "Marn, Jan"]
[WhiteFideId "12401153"]
[BlackFideId "14619245"]
[WhiteElo "2986"]
[BlackElo "2483"]
[Result "1-0"]
[Round "1"]
[TimeControl "180+1"]
[Date "2023.08.15"]
[WhiteClock "0:00:56"]
[BlackClock "0:00:06"]
[Board "28"]

1. d4 {[%clk 0:02:57]}  d5 {[%clk 0:02:59]} 2. Nf3 {[%clk 0:02:57]}  Nf6 {[%clk 0:02:59]} 3. Bf4 {[%clk 0:02:55]}  e6 {[%clk 0:03:00]} 4. e3 {[%clk 0:02:55]}  Bd6 {[%clk 0:03:00]} 5. Nbd2 {[%clk 0:02:55]}  O-O {[%clk 0:02:59]} 6. Bd3 {[%clk 0:02:55]}  b6 {[%clk 0:02:57]} 7. Qe2 {[%clk 0:02:55]}  Bb7 {[%clk 0:02:57]} 8. O-O {[%clk 0:02:55]}  Nbd7 {[%clk 0:02:54]} 9. Ne5 {[%clk 0:02:51]}  Ne4 {[%clk 0:02:50]} 10. Nxe4 {[%clk 0:02:45]}  dxe4 {[%clk 0:02:50]} 11. Ba6 {[%clk 0:02:45]}  Bxa6 {[%clk 0:02:46]} 12. Qxa6 {[%clk 0:02:45]}  Nxe5 {[%clk 0:02:47]} 13. dxe5 {[%clk 0:02:42]}  Be7 {[%clk 0:02:44]} 14. Rfd1 {[%clk 0:02:37]}  Qc8 {[%clk 0:02:45]} 15. Qc4 {[%clk 0:02:38]}  Rd8 {[%clk 0:02:40]} 16. Qxe4 {[%clk 0:02:38]}  c6 {[%clk 0:01:57]} 17. g4 {[%clk 0:02:27]}  Qc7 {[%clk 0:01:53]} 18. Bg3 {[%clk 0:02:22]}  Rxd1+ {[%clk 0:01:51]} 19. Rxd1 {[%clk 0:02:20]}  Rd8 {[%clk 0:01:52]} 20. Rd4 {[%clk 0:02:15]}  h6 {[%clk 0:01:36]} 21. h3 {[%clk 0:02:10]}  Rxd4 {[%clk 0:00:52]} 22. exd4 {[%clk 0:02:08]}  Qd7 {[%clk 0:00:53]} 23. c3 {[%clk 0:02:07]}  a5 {[%clk 0:00:48]} 24. Kg2 {[%clk 0:02:06]}  a4 {[%clk 0:00:49]} 25. a3 {[%clk 0:02:05]}  Qd5 {[%clk 0:00:36]} 26. Kf3 {[%clk 0:01:50]}  Qc4 {[%clk 0:00:30]} 27. Bf4 {[%clk 0:01:43]}  b5 {[%clk 0:00:23]} 28. Kg3 {[%clk 0:01:35]}  Qd5 {[%clk 0:00:22]} 29. Qf3 {[%clk 0:01:28]}  Kh7 {[%clk 0:00:20]} 30. Be3 {[%clk 0:01:26]}  Kg8 {[%clk 0:00:19]} 31. Qd1 {[%clk 0:01:21]}  Qc4 {[%clk 0:00:11]} 32. f4 {[%clk 0:01:16]}  Qd5 {[%clk 0:00:10]} 33. f5 {[%clk 0:01:16]}  Bh4+ {[%clk 0:00:10]} 34. Kxh4 {[%clk 0:01:13]}  Qg2 {[%clk 0:00:10]} 35. Qd2 {[%clk 0:00:59]}  Qf3 {[%clk 0:00:06]} 36. Qf2 {[%clk 0:00:56]} 1-0


[Site "https://www.chess.com"]

[Event "Titled Tuesday Blitz August 15 Early 2023"]
[White "Bochnicka, Vladimir"]
[Black "Matlakov, Maxim"]
[WhiteFideId "14943450"]
[BlackFideId "4168003"]
[WhiteElo "2483"]
[BlackElo "2978"]
[Result "0-1"]
[Round "1"]
[TimeControl "180+1"]
[Date "2023.08.15"]
[WhiteClock "0:00:33"]
[BlackClock "0:02:04"]
[Board "29"]

1. e4 {[%clk 0:02:57]}  c5 {[%clk 0:02:59]} 2. Nf3 {[%clk 0:02:56]}  d6 {[%clk 0:02:59]} 3. d4 {[%clk 0:02:55]}  cxd4 {[%clk 0:03:00]} 4. Nxd4 {[%clk 0:02:56]}  Nf6 {[%clk 0:03:00]} 5. Nc3 {[%clk 0:02:57]}  a6 {[%clk 0:03:01]} 6. f3 {[%clk 0:02:57]}  e5 {[%clk 0:02:57]} 7. Nb3 {[%clk 0:02:58]}  Be6 {[%clk 0:02:58]} 8. Be3 {[%clk 0:02:58]}  Nbd7 {[%clk 0:02:58]} 9. g4 {[%clk 0:02:58]}  h6 {[%clk 0:02:56]} 10. Qd2 {[%clk 0:02:56]}  b5 {[%clk 0:02:56]} 11. O-O-O {[%clk 0:02:55]}  Rc8 {[%clk 0:02:56]} 12. Kb1 {[%clk 0:02:53]}  Nb6 {[%clk 0:02:57]} 13. Na5 {[%clk 0:02:10]}  Be7 {[%clk 0:02:53]} 14. Nb7 {[%clk 0:02:02]}  Qc7 {[%clk 0:02:53]} 15. Nxd6+ {[%clk 0:02:02]}  Bxd6 {[%clk 0:02:53]} 16. Qxd6 {[%clk 0:02:03]}  Nfd7 {[%clk 0:02:54]} 17. Be2 {[%clk 0:01:40]}  Nc4 {[%clk 0:02:49]} 18. Qxc7 {[%clk 0:01:32]}  Rxc7 {[%clk 0:02:48]} 19. Bxc4 {[%clk 0:01:32]}  Rxc4 {[%clk 0:02:48]} 20. Rd6 {[%clk 0:01:28]}  b4 {[%clk 0:02:41]} 21. Nd5 {[%clk 0:01:26]}  a5 {[%clk 0:02:40]} 22. Nb6 {[%clk 0:01:22]}  Nxb6 {[%clk 0:02:32]} 23. Bxb6 {[%clk 0:01:23]}  O-O {[%clk 0:02:32]} 24. Bxa5 {[%clk 0:01:21]}  Ra8 {[%clk 0:02:31]} 25. Rd8+ {[%clk 0:01:21]}  Rxd8 {[%clk 0:02:30]} 26. Bxd8 {[%clk 0:01:22]}  Rd4 {[%clk 0:02:26]} 27. Kc1 {[%clk 0:01:21]}  Rxd8 {[%clk 0:02:25]} 28. a4 {[%clk 0:01:20]}  bxa3 {[%clk 0:02:25]} 29. bxa3 {[%clk 0:01:21]}  Kf8 {[%clk 0:02:23]} 30. Kb2 {[%clk 0:01:20]}  Rb8+ {[%clk 0:02:20]} 31. Kc3 {[%clk 0:01:20]}  Rc8+ {[%clk 0:02:21]} 32. Kd2 {[%clk 0:01:20]}  Ke7 {[%clk 0:02:21]} 33. Rb1 {[%clk 0:01:20]}  Ra8 {[%clk 0:02:20]} 34. Ra1 {[%clk 0:01:17]}  Kf6 {[%clk 0:02:21]} 35. a4 {[%clk 0:01:15]}  Kg5 {[%clk 0:02:21]} 36. Ke3 {[%clk 0:01:14]}  Rc8 {[%clk 0:02:16]} 37. a5 {[%clk 0:01:01]}  Rxc2 {[%clk 0:02:14]} 38. a6 {[%clk 0:01:01]}  Rc3+ {[%clk 0:02:14]} 39. Kd2 {[%clk 0:01:00]}  Rc8 {[%clk 0:02:14]} 40. a7 {[%clk 0:00:59]}  Ra8 {[%clk 0:02:15]} 41. Ke3 {[%clk 0:01:00]}  Kf6 {[%clk 0:02:12]} 42. Ra5 {[%clk 0:00:59]}  Ke7 {[%clk 0:02:11]} 43. Rxe5 {[%clk 0:00:53]}  Rxa7 {[%clk 0:02:10]} 44. f4 {[%clk 0:00:54]}  f6 {[%clk 0:02:08]} 45. Rc5 {[%clk 0:00:53]}  Bxg4 {[%clk 0:02:08]} 46. e5 {[%clk 0:00:49]}  Be6 {[%clk 0:02:06]} 47. exf6+ {[%clk 0:00:44]}  Kxf6 {[%clk 0:02:06]} 48. Ke4 {[%clk 0:00:43]}  Ra4+ {[%clk 0:02:06]} 49. Kf3 {[%clk 0:00:43]}  Rc4 {[%clk 0:02:06]} 50. Ra5 {[%clk 0:00:41]}  Rc3+ {[%clk 0:02:06]} 51. Ke4 {[%clk 0:00:40]}  Rh3 {[%clk 0:02:06]} 52. Ra6 {[%clk 0:00:35]}  Rxh2 {[%clk 0:02:04]} 53. f5 {[%clk 0:00:33]}  Rh4+ {[%clk 0:02:04]} 0-1


[Site "https://www.chess.com"]

[Event "Titled Tuesday Blitz August 15 Early 2023"]
[White "Makhnev, Denis"]
[Black "Dias, Paulo"]
[WhiteFideId "13707647"]
[BlackFideId "1900803"]
[WhiteElo "2959"]
[BlackElo "2477"]
[Result "1-0"]
[Round "1"]
[TimeControl "180+1"]
[Date "2023.08.15"]
[WhiteClock "0:00:04"]
[BlackClock "0:00:03"]
[Board "34"]

1. d4 {[%clk 0:03:00]}  Nf6 {[%clk 0:02:58]} 2. c4 {[%clk 0:03:01]}  e6 {[%clk 0:02:57]} 3. g3 {[%clk 0:03:00]}  c5 {[%clk 0:02:56]} 4. d5 {[%clk 0:03:00]}  exd5 {[%clk 0:02:56]} 5. cxd5 {[%clk 0:03:01]}  d6 {[%clk 0:02:56]} 6. Nc3 {[%clk 0:03:01]}  g6 {[%clk 0:02:56]} 7. Nf3 {[%clk 0:03:02]}  Bg7 {[%clk 0:02:56]} 8. Bg2 {[%clk 0:03:02]}  O-O {[%clk 0:02:56]} 9. O-O {[%clk 0:03:03]}  a6 {[%clk 0:02:56]} 10. a4 {[%clk 0:03:03]}  Re8 {[%clk 0:02:56]} 11. Bf4 {[%clk 0:03:03]}  Ne4 {[%clk 0:02:55]} 12. Nxe4 {[%clk 0:03:03]}  Rxe4 {[%clk 0:02:55]} 13. Nd2 {[%clk 0:03:04]}  Rb4 {[%clk 0:02:52]} 14. a5 {[%clk 0:03:04]}  Qc7 {[%clk 0:02:43]} 15. Ra4 {[%clk 0:03:03]}  Rb5 {[%clk 0:02:40]} 16. Nc4 {[%clk 0:03:02]}  Bf8 {[%clk 0:02:35]} 17. e4 {[%clk 0:02:37]}  Nd7 {[%clk 0:02:29]} 18. e5 {[%clk 0:02:30]}  Nxe5 {[%clk 0:02:06]} 19. Bxe5 {[%clk 0:02:23]}  dxe5 {[%clk 0:02:05]} 20. d6 {[%clk 0:02:23]}  Qd8 {[%clk 0:02:00]} 21. Bd5 {[%clk 0:02:23]}  Qf6 {[%clk 0:01:55]} 22. Ra3 {[%clk 0:02:08]}  Bf5 {[%clk 0:01:37]} 23. Rf3 {[%clk 0:02:07]}  Rd8 {[%clk 0:01:28]} 24. g4 {[%clk 0:01:44]}  Qg5 {[%clk 0:01:26]} 25. Rg3 {[%clk 0:01:44]}  Be6 {[%clk 0:01:17]} 26. Bxe6 {[%clk 0:01:44]}  fxe6 {[%clk 0:01:17]} 27. b3 {[%clk 0:00:20]}  Rb4 {[%clk 0:01:14]} 28. Rd3 {[%clk 0:00:13]}  e4 {[%clk 0:01:09]} 29. Rd2 {[%clk 0:00:13]}  Bg7 {[%clk 0:01:01]} 30. h3 {[%clk 0:00:11]}  Bd4 {[%clk 0:01:00]} 31. Kg2 {[%clk 0:00:08]}  Rxc4 {[%clk 0:00:57]} 32. bxc4 {[%clk 0:00:08]}  Rxd6 {[%clk 0:00:54]} 33. Qe2 {[%clk 0:00:08]}  Qf4 {[%clk 0:00:49]} 34. Rdd1 {[%clk 0:00:07]}  e5 {[%clk 0:00:36]} 35. Rfe1 {[%clk 0:00:01]}  Rf6 {[%clk 0:00:35]} 36. Rd2 {[%clk 0:00:02]}  Qf3+ {[%clk 0:00:31]} 37. Qxf3 {[%clk 0:00:02]}  exf3+ {[%clk 0:00:32]} 38. Kg3 {[%clk 0:00:02]}  g5 {[%clk 0:00:18]} 39. Rd3 {[%clk 0:00:02]}  Kf7 {[%clk 0:00:14]} 40. Rxf3 {[%clk 0:00:03]}  Rf4 {[%clk 0:00:14]} 41. Rxf4+ {[%clk 0:00:03]}  exf4+ {[%clk 0:00:11]} 42. Kf3 {[%clk 0:00:04]}  Kf6 {[%clk 0:00:11]} 43. Rb1 {[%clk 0:00:04]}  Bc3 {[%clk 0:00:10]} 44. Rxb7 {[%clk 0:00:05]}  Bxa5 {[%clk 0:00:09]} 45. Rxh7 {[%clk 0:00:05]}  Ke6 {[%clk 0:00:09]} 46. Ke4 {[%clk 0:00:03]}  Be1 {[%clk 0:00:07]} 47. Rh6+ {[%clk 0:00:03]}  Kd7 {[%clk 0:00:07]} 48. f3 {[%clk 0:00:02]}  a5 {[%clk 0:00:07]} 49. Kd5 {[%clk 0:00:03]}  a4 {[%clk 0:00:07]} 50. Rh7+ {[%clk 0:00:03]}  Ke8 {[%clk 0:00:03]} 51. Ra7 {[%clk 0:00:04]} 1-0


[Site "https://www.chess.com"]

[Event "Titled Tuesday Blitz August 15 Early 2023"]
[White "Makarian, Rudik"]
[Black "brm72"]
[WhiteFideId "44105681"]
[WhiteElo "2955"]
[BlackElo "2476"]
[Result "1-0"]
[Round "1"]
[TimeControl "180+1"]
[Date "2023.08.15"]
[WhiteClock "0:01:45"]
[BlackClock "0:00:30"]
[Board "36"]

1. d4 {[%clk 0:02:58]}  Nf6 {[%clk 0:03:00]} 2. c4 {[%clk 0:02:58]}  g6 {[%clk 0:03:00]} 3. Nc3 {[%clk 0:02:58]}  d5 {[%clk 0:03:00]} 4. Bg5 {[%clk 0:02:58]}  Ne4 {[%clk 0:03:00]} 5. cxd5 {[%clk 0:02:57]}  Nxc3 {[%clk 0:02:42]} 6. bxc3 {[%clk 0:02:58]}  Qxd5 {[%clk 0:02:42]} 7. Nf3 {[%clk 0:02:58]}  c5 {[%clk 0:02:43]} 8. e3 {[%clk 0:02:58]}  Bg7 {[%clk 0:02:42]} 9. Be2 {[%clk 0:02:58]}  Nc6 {[%clk 0:02:42]} 10. O-O {[%clk 0:02:58]}  cxd4 {[%clk 0:02:40]} 11. cxd4 {[%clk 0:02:58]}  O-O {[%clk 0:02:40]} 12. h3 {[%clk 0:02:44]}  h6 {[%clk 0:02:35]} 13. Bh4 {[%clk 0:02:44]}  g5 {[%clk 0:02:30]} 14. Bg3 {[%clk 0:02:44]}  Bf5 {[%clk 0:02:30]} 15. Nd2 {[%clk 0:02:41]}  Rfc8 {[%clk 0:02:20]} 16. Bf3 {[%clk 0:02:36]}  Qd7 {[%clk 0:02:19]} 17. Rc1 {[%clk 0:02:23]}  Bg6 {[%clk 0:02:04]} 18. Qb3 {[%clk 0:02:19]}  e6 {[%clk 0:02:04]} 19. Ne4 {[%clk 0:02:16]}  b6 {[%clk 0:00:43]} 20. Nd6 {[%clk 0:02:13]}  Na5 {[%clk 0:00:44]} 21. Qb5 {[%clk 0:01:52]}  Qxb5 {[%clk 0:00:39]} 22. Nxb5 {[%clk 0:01:52]}  Rxc1 {[%clk 0:00:40]} 23. Rxc1 {[%clk 0:01:53]}  Re8 {[%clk 0:00:34]} 24. Nxa7 {[%clk 0:01:51]}  e5 {[%clk 0:00:34]} 25. dxe5 {[%clk 0:01:50]}  Bxe5 {[%clk 0:00:35]} 26. Bxe5 {[%clk 0:01:47]}  Rxe5 {[%clk 0:00:36]} 27. Nc6 {[%clk 0:01:43]}  Nxc6 {[%clk 0:00:35]} 28. Rxc6 {[%clk 0:01:44]}  Ra5 {[%clk 0:00:34]} 29. Rxb6 {[%clk 0:01:44]}  Rxa2 {[%clk 0:00:30]} 30. Rxg6+ {[%clk 0:01:45]} 1-0


[Site "https://www.chess.com"]

[Event "Titled Tuesday Blitz August 15 Early 2023"]
[White "Donchenko, Alexander"]
[Black "Spichkin, Alexander"]
[WhiteFideId "24603295"]
[BlackFideId "4144074"]
[WhiteElo "2904"]
[BlackElo "2454"]
[Result "1-0"]
[Round "1"]
[TimeControl "180+1"]
[Date "2023.08.15"]
[WhiteClock "0:00:37"]
[BlackClock "0:00:32"]
[Board "50"]

1. d4 {[%clk 0:03:00]}  e6 {[%clk 0:03:00]} 2. Nf3 {[%clk 0:03:01]}  f5 {[%clk 0:02:57]} 3. g3 {[%clk 0:03:01]}  Nf6 {[%clk 0:02:57]} 4. Bg2 {[%clk 0:03:02]}  Be7 {[%clk 0:02:58]} 5. O-O {[%clk 0:03:02]}  d6 {[%clk 0:02:58]} 6. c4 {[%clk 0:03:02]}  O-O {[%clk 0:02:59]} 7. b4 {[%clk 0:03:02]}  Qe8 {[%clk 0:02:58]} 8. Qb3 {[%clk 0:03:00]}  Kh8 {[%clk 0:02:54]} 9. Nc3 {[%clk 0:02:59]}  Qh5 {[%clk 0:02:52]} 10. Bg5 {[%clk 0:02:52]}  Nc6 {[%clk 0:02:48]} 11. Rae1 {[%clk 0:02:47]}  h6 {[%clk 0:02:46]} 12. Bxf6 {[%clk 0:02:47]}  Bxf6 {[%clk 0:02:46]} 13. d5 {[%clk 0:02:44]}  Ne5 {[%clk 0:02:38]} 14. dxe6 {[%clk 0:02:38]}  c6 {[%clk 0:02:33]} 15. Nxe5 {[%clk 0:02:05]}  dxe5 {[%clk 0:02:33]} 16. b5 {[%clk 0:02:04]}  e4 {[%clk 0:02:18]} 17. c5 {[%clk 0:01:53]}  Bxc3 {[%clk 0:02:08]} 18. Qxc3 {[%clk 0:01:53]}  Bxe6 {[%clk 0:02:08]} 19. a4 {[%clk 0:01:48]}  Rad8 {[%clk 0:01:59]} 20. f3 {[%clk 0:01:45]}  Bd5 {[%clk 0:01:52]} 21. b6 {[%clk 0:01:39]}  axb6 {[%clk 0:01:52]} 22. cxb6 {[%clk 0:01:40]}  Ra8 {[%clk 0:01:52]} 23. a5 {[%clk 0:01:40]}  exf3 {[%clk 0:01:43]} 24. Bxf3 {[%clk 0:01:37]}  Bxf3 {[%clk 0:01:43]} 25. exf3 {[%clk 0:01:36]}  f4 {[%clk 0:01:43]} 26. Re7 {[%clk 0:01:33]}  Qg5 {[%clk 0:01:32]} 27. Re5 {[%clk 0:01:22]}  Qg6 {[%clk 0:01:28]} 28. g4 {[%clk 0:01:21]}  Rfe8 {[%clk 0:01:25]} 29. Rfe1 {[%clk 0:01:19]}  Rxe5 {[%clk 0:01:25]} 30. Rxe5 {[%clk 0:01:19]}  Qb1+ {[%clk 0:01:24]} 31. Re1 {[%clk 0:01:17]}  Qb5 {[%clk 0:01:20]} 32. Re7 {[%clk 0:01:14]}  Qb1+ {[%clk 0:01:19]} 33. Kg2 {[%clk 0:01:10]}  Qg6 {[%clk 0:01:18]} 34. h4 {[%clk 0:00:53]}  Rd8 {[%clk 0:01:17]} 35. h5 {[%clk 0:00:52]}  Qg5 {[%clk 0:01:17]} 36. Qe5 {[%clk 0:00:50]}  Rd2+ {[%clk 0:01:11]} 37. Kf1 {[%clk 0:00:50]}  Qxe5 {[%clk 0:01:10]} 38. Rxe5 {[%clk 0:00:50]}  Ra2 {[%clk 0:01:10]} 39. Rf5 {[%clk 0:00:47]}  Kg8 {[%clk 0:01:04]} 40. Ke1 {[%clk 0:00:47]}  Kh7 {[%clk 0:00:54]} 41. Kd1 {[%clk 0:00:45]}  Kg8 {[%clk 0:00:52]} 42. Kc1 {[%clk 0:00:44]}  Ra3 {[%clk 0:00:52]} 43. Kb2 {[%clk 0:00:41]}  Rxf3 {[%clk 0:00:51]} 44. a6 {[%clk 0:00:41]}  Rf2+ {[%clk 0:00:50]} 45. Kb3 {[%clk 0:00:42]}  Rf1 {[%clk 0:00:47]} 46. a7 {[%clk 0:00:42]}  Ra1 {[%clk 0:00:48]} 47. Rxf4 {[%clk 0:00:41]}  Ra6 {[%clk 0:00:47]} 48. Kc4 {[%clk 0:00:39]}  Ra5 {[%clk 0:00:43]} 49. Rd4 {[%clk 0:00:38]}  Kf7 {[%clk 0:00:39]} 50. Rd8 {[%clk 0:00:37]}  Ra4+ {[%clk 0:00:39]} 51. Kb3 {[%clk 0:00:37]}  Rxg4 {[%clk 0:00:32]} 52. a8=Q {[%clk 0:00:37]} 1-0


[Site "https://www.chess.com"]